bitfinex-derivatives/quotes_SOLF0:USTF0_20250829
["timestamp","ask_amount","ask_price","bid_price","bid_amount"]
[1756471184087,19.18481313,211.93,211.73,3.77439245]
[1756471184487,19.18481313,211.93,211.8,4.2486]
[1756471184986,7.78,211.87,211.7,3.77439245]
[1756471185291,7.78,211.87,211.73,4.2499]
[1756471185486,7.78,211.95,211.74,7.07]
[1756471185792,7.78,211.95,211.78,7.07]
[1756471186188,7.78,211.95,211.86,4.2473]
[1756471186386,7.78,211.95,211.78,10.84439245]
[1756471186387,7.78,211.95,211.79,3.77439245]
[1756471186584,317.16,211.96,211.82,10.84439245]
[1756471186887,317.16,211.96,211.88,4.2469]
[1756471187089,317.16,211.96,211.82,10.84439245]
[1756471187390,317.16,211.96,211.88,4.247]
[1756471187585,193.1,211.98,211.88,4.247]
[1756471187789,193.1,211.98,211.82,10.84240773]
[1756471187985,193.1,211.98,211.87,4.2472]
[1756471188188,7.78,211.97,211.81,3.77240773]
[1756471188389,7.78,211.94,211.76,10.84240773]
[1756471188687,7.78,211.94,211.78,4.2489]
[1756471188991,7.78,211.9,211.74,3.77240773]
[1756471189184,7.78,211.9,211.75,4.2496]
[1756471189488,7.78,211.9,211.71,3.77240773]
[1756471189785,7.78,211.9,211.74,4.2497]
[1756471190580,7.78,211.9,211.7,7.07]
[1756471191184,7.78,211.9,211.7,11.3205]
[1756471191384,7.78,211.85,211.7,11.3205]
[1756471191587,7.78,211.85,211.65,3.77240773]
[1756471191785,7.78,211.8,211.64,7.07]
[1756471192384,26.96481313,211.86,211.64,10.84240773]
[1756471192693,26.96481313,211.86,211.66,3.77240773]
[1756471193192,7.78,211.86,211.68,10.84240773]
[1756471193387,7.78,211.92,211.73,10.84240773]
[1756471193592,7.78,211.92,211.75,7.07]
[1756471193793,7.78,211.92,211.79,7.07]
[1756471194989,7.78,211.98,211.81,7.07]
[1756471195189,219.08481313,212.05,211.84,7.07]
[1756471195492,199.9,212.05,211.84,7.07]
[1756471195691,199.9,212.05,211.86,3.77240773]
[1756471196186,211.30481313,212.05,211.84,10.84240773]
[1756471196384,7.78,212.04,211.84,7.07]
[1756471196587,7.78,212.04,211.85,3.77240773]
[1756471196794,7.78,212.04,211.86,3.77240773]
[1756471197090,7.78,212.04,211.92,4.2462]
[1756471197586,7.78,212.04,211.89,4.2467]
[1756471198492,7.78,212.04,211.83,7.07]
[1756471199090,7.78,212.04,211.89,4.2468]
[1756471199392,7.78,212.04,211.83,7.07]
[1756471200499,7.78,212.04,211.84,3.77240773]
[1756471200699,317.22,212.07,211.97,4.2451]
[1756471200998,317.22,212.07,211.94,7.07]
[1756471201696,7.78,212.05,211.88,7.07]
[1756471201901,7.78,212.05,211.84,3.77240773]
[1756471202096,7.78,212.0,211.82,3.77240773]
[1756471202304,199.12,212.0,211.86,4.2474]
[1756471202595,191.34,212.0,211.84,10.84240773]
[1756471202794,7.78,211.99,211.84,10.84240773]
[1756471202990,7.78,211.99,211.87,4.2472]
[1756471203595,191.22,212.03,211.84,10.84240773]
[1756471203801,191.22,212.03,211.85,10.84240773]
[1756471204002,7.78,212.05,211.85,7.07]
[1756471204201,1359.08,212.17,211.85,7.07]
[1756471204202,7.78,212.11,211.97,4.2452]
[1756471204707,191.08,212.12,212.01,4.2444]
[1756471205196,191.08,212.12,212.0,7.07]
[1756471205396,7.78,212.11,211.93,7.07]
[1756471205603,7.78,212.11,211.93,10.84240773]
[1756471205903,7.78,212.11,211.93,7.07]
[1756471206097,7.78,212.11,211.94,4.2457]
[1756471206304,7.78,212.11,211.93,7.07]
[1756471206694,7.78,212.11,212.01,4.2444]
[1756471206895,7.27,212.18,211.99,7.76]
[1756471207296,7.27,212.18,212.0,7.76]
[1756471207600,7.27,212.18,212.05,7.76]
[1756471207796,7.27,212.18,211.99,11.53240773]
[1756471208003,7.27,212.16,211.99,7.76]
[1756471208600,7.27,212.16,211.92,65.77240773]
[1756471208601,7.27,212.16,211.98,4.245]
[1756471208801,7.27,212.16,211.93,7.76]
[1756471209406,7.27,212.13,211.93,7.76]
[1756471209808,197.75,212.13,211.93,7.76]
[1756471210209,197.75,212.13,211.86,3.77240773]
[1756471210407,7.27,212.08,211.87,7.76]
[1756471210604,19.18481313,212.04,211.83,3.77240773]
[1756471210804,19.18481313,212.04,211.81,7.76]
[1756471210805,7.27,212.03,211.81,7.76]
[1756471211009,7.27,212.01,211.81,7.76]
[1756471211207,7.27,212.01,211.81,3.77240773]
[1756471211403,7.27,212.08,211.85,7.76]
[1756471211604,7.27,212.08,211.85,11.53240773]
[1756471211911,7.27,212.03,211.85,7.76]
[1756471212414,7.27,212.03,211.9,4.2466]
[1756471212606,7.27,212.03,211.85,7.76]
[1756471213003,7.27,212.03,211.92,4.2462]
[1756471213412,7.27,212.03,211.85,7.76]
[1756471213612,7.27,212.03,211.91,4.2464]
[1756471214215,7.27,212.03,211.85,7.76]
[1756471214810,7.27,212.03,211.89,4.2468]
[1756471215012,7.27,212.03,211.85,7.76]
[1756471215513,7.27,212.03,211.85,11.53240773]
[1756471215708,7.27,212.03,211.86,7.76]
[1756471215909,7.27,212.03,211.93,4.2459]
[1756471216107,7.27,212.11,211.88,3.77240773]
[1756471216308,7.27,212.11,211.89,11.53240773]
[1756471216512,87.26,212.14,211.93,11.53240773]
[1756471216713,87.26,212.14,211.95,7.76]
[1756471217016,7.27,212.15,211.98,7.76]
[1756471217509,21.48,212.15,211.91,7.76]
[1756471217916,7.27,212.1,211.91,7.76]
[1756471219118,7.27,212.1,211.95,7.76]
[1756471219515,7.27,212.1,211.97,4.2452]
[1756471220215,7.27,212.1,211.94,4.2457]
[1756471220411,7.27,212.09,211.89,324.76]
[1756471220612,7.27,212.05,211.88,4.2469]
[1756471220812,21.48,212.05,211.83,7.76]
[1756471221008,19.18481313,212.06,211.83,7.76]
[1756471221009,7.27,212.03,211.83,7.76]
[1756471221315,7.27,212.03,211.85,7.76]
[1756471221911,7.27,212.03,211.9,4.2466]
[1756471222213,7.27,212.03,211.85,7.76]
[1756471223416,7.27,212.03,211.92,4.2461]
[1756471223710,7.27,212.03,211.85,7.76]
[1756471223914,21.48,212.03,211.81,3.77240773]
[1756471224112,14.21,212.0,211.79,7.76]
[1756471224312,7.27,211.99,211.79,7.76]
[1756471224514,7.27,211.99,211.81,4.2483]
[1756471224914,196.03,211.99,211.81,4.2483]
[1756471225113,7.27,211.96,211.78,4.2489]
[1756471225816,21.48,211.96,211.78,4.2489]
[1756471226315,21.48,211.96,211.73,7.76]
[1756471226815,33.39481313,211.94,211.73,7.76]
[1756471227015,21.48,211.93,211.73,7.76]
[1756471227311,7.27,211.88,211.73,4.2499]
[1756471227516,14.21,211.88,211.67,7.76]
[1756471227811,14.21,211.88,211.6,7.10015998]
[1756471227812,7.27,211.81,211.61,3.77240773]
[1756471228010,19.18481313,211.79,211.6,7.76]
[1756471228417,7.27,211.8,211.67,4.2511]
[1756471228616,317.04,211.82,211.68,7.76]
[1756471229006,317.04,211.82,211.7,4.2506]
[1756471229211,317.04,211.82,211.68,7.76]
[1756471229415,7.27,211.81,211.63,7.76]
[1756471230114,7.27,211.91,211.65,19.18481313]
[1756471230312,7.27,211.91,211.68,7.76]
[1756471230511,19.18481313,211.86,211.67,3.77240773]
[1756471230716,19.18481313,211.8,211.59,3.77240773]
[1756471231011,7.27,211.79,211.58,7.76]
[1756471231515,7.27,211.79,211.63,4.252]
[1756471231711,7.27,211.79,211.58,7.76]
[1756471232509,207.20481313,211.81,211.51,516.90481313]
[1756471232510,7.27,211.74,211.51,328.55240773]
[1756471232718,19.18481313,211.75,211.51,328.55240773]
[1756471233013,7.27,211.74,211.51,324.78]
[1756471233319,7.27,211.72,211.51,324.78]
[1756471234214,7.27,211.72,211.51,317.02]
[1756471234421,7.27,211.81,211.54,7.76]
[1756471234616,7.27,211.76,211.54,7.76]
[1756471236219,7.27,211.76,211.65,4.2516]
[1756471237623,7.27,211.76,211.62,4.2521]
[1756471238123,7.24,211.81,211.6,7.76]
[1756471238523,7.24,211.81,211.65,7.09]
[1756471239018,317.12,211.82,211.65,7.09]
[1756471239324,7.24,211.87,211.68,7.09]
[1756471239724,7.24,211.87,211.75,4.2496]
[1756471240223,7.24,211.87,211.72,4.2501]
[1756471240726,7.24,211.87,211.68,7.09]
[1756471241321,7.24,211.87,211.74,4.2498]
[1756471241524,7.24,211.87,211.68,7.09]
[1756471241722,7.24,211.87,211.77,4.2492]
[1756471241923,7.24,211.87,211.73,7.09]
[1756471242425,7.24,211.87,211.73,11.3399]
[1756471242723,7.24,211.87,211.73,7.09]
[1756471242920,7.24,211.87,211.67,26.27481313]
[1756471243122,7.24,211.83,211.58,3.74741]
[1756471243326,21.45,211.83,211.59,7.09]
[1756471243526,21.45,211.83,211.64,4.2518]
[1756471243726,21.45,211.83,211.59,7.09]
[1756471244423,21.45,211.83,211.63,4.252]
[1756471244624,7.24,211.78,211.59,7.09]
[1756471245026,119.55,211.78,211.59,7.09]
[1756471245222,119.55,211.78,211.51,317.02]
[1756471245522,119.55,211.78,211.45,7.09]
[1756471245523,7.24,211.62,211.45,7.09]
[1756471246122,7.24,211.62,211.4,3.74741]
[1756471246322,7.24,211.68,211.44,7.09]
[1756471246523,7.24,211.68,211.48,19.18481313]
[1756471246727,7.24,211.68,211.59,4.2528]
[1756471247022,7.24,211.68,211.54,7.09]
[1756471247225,7.24,211.68,211.6,4.2526]
[1756471247420,26.42481313,211.75,211.54,7.09]
[1756471247824,26.42481313,211.75,211.63,4.2521]
[1756471248528,7.24,211.75,211.54,7.09]
[1756471249428,193.38,211.75,211.54,7.09]
[1756471249619,193.38,211.75,211.62,4.2522]
[1756471250220,207.59,211.75,211.54,7.09]
[1756471250420,7.24,211.69,211.48,317.36]
[1756471250625,19.18481313,211.67,211.48,317.36]
[1756471251229,7.24,211.69,211.49,7.09]
[1756471252233,7.24,211.69,211.59,4.2528]
[1756471252629,7.24,211.69,211.55,7.09]
[1756471252829,7.24,211.69,211.58,4.253]
[1756471253130,7.24,211.69,211.55,7.09]
[1756471253324,26.42481313,211.69,211.49,7.09]
[1756471253935,19.18481313,211.64,211.42,3.74741]
[1756471254132,21.45,211.63,211.41,7.09]
[1756471254433,21.45,211.6,211.41,7.09]
[1756471254632,21.45,211.6,211.43,4.256]
[1756471254834,21.45,211.6,211.41,7.09]
[1756471255230,21.45,211.6,211.45,4.2556]
[1756471255437,7.24,211.58,211.41,7.09]
[1756471255836,7.24,211.58,211.44,4.2559]
[1756471256438,7.24,211.58,211.41,11.3464]
[1756471256639,7.24,211.53,211.3,7.09]
[1756471256837,21.45,211.53,211.3,7.09]
[1756471257137,7.24,211.51,211.33,7.09]
[1756471257549,7.24,211.51,211.41,4.2565]
[1756471258646,7.24,211.51,211.38,11.3471]
[1756471258840,7.24,211.51,211.38,4.2571]
[1756471259038,7.24,211.51,211.34,7.09]
[1756471260245,26.42481313,211.51,211.34,7.09]
[1756471260445,7.24,211.5,211.27,7.09]
[1756471260757,7.24,211.45,211.27,7.09]
[1756471261051,162.18,211.53,211.17,3.74741]
[1756471261052,14.21,211.49,211.17,3.74741]
[1756471261252,7.24,211.27,211.08,7.09]
[1756471261554,317.6,211.26,211.08,7.09]
[1756471262348,19.18481313,211.32,211.08,7.09]
[1756471262551,19.18481313,211.32,211.16,4.2614]
[1756471262851,7.24,211.31,211.15,7.09]
[1756471263055,19.18481313,211.27,211.15,7.09]
[1756471263249,7.24,211.26,211.09,7.09]
[1756471263453,7.24,211.33,211.09,19.18481313]
[1756471263647,7.24,211.33,211.1,7.09]
[1756471263846,19.18481313,211.32,211.1,7.09]
[1756471264052,7.24,211.33,211.1,7.09]
[1756471264245,7.24,211.33,211.17,4.2613]
[1756471264450,19.18481313,211.3,211.02,0.82397092]
[1756471264648,26.42481313,211.29,211.03,7.09]
[1756471265353,26.42481313,211.29,211.09,7.09]
[1756471265555,7.24,211.23,211.09,7.09]
[1756471265753,7.24,211.23,211.02,0.82397092]
[1756471265754,7.24,211.23,211.04,4.264]
[1756471265948,7.24,211.18,211.04,4.264]
[1756471266149,7.24,211.12,210.88,7.09]
[1756471266849,19.18481313,211.08,210.88,69.09]
[1756471267046,19.18481313,211.08,210.89,7.73]
[1756471267246,7.24,211.12,210.89,7.73]
[1756471267456,7.24,211.12,210.95,4.2658]
[1756471267651,7.24,211.12,210.89,7.73]
[1756471268058,7.24,211.12,210.9,7.73]
[1756471268357,7.32,211.07,210.9,7.73]
[1756471268551,7.32,211.07,210.95,4.2657]
[1756471268748,7.32,211.07,210.9,7.73]
[1756471268950,26.50481313,211.13,210.9,7.73]
[1756471269148,7.32,211.19,211.03,7.73]
[1756471269347,26.50481313,211.27,211.03,7.73]
[1756471269548,7.32,211.27,211.05,7.73]
[1756471270346,7.32,211.27,211.06,62.0]
[1756471270548,7.32,211.27,211.07,7.73]
[1756471270752,7.32,211.27,211.16,4.2615]
[1756471270956,26.50481313,211.33,211.13,7.73]
[1756471271156,7.32,211.27,211.07,7.73]
[1756471271457,7.32,211.22,211.07,7.73]
[1756471271758,7.32,211.22,211.02,4.2642]
[1756471271953,7.32,211.22,210.97,7.73]
[1756471272553,19.18481313,211.27,211.04,7.73]
[1756471272853,19.18481313,211.27,211.15,4.2618]
[1756471273158,19.18481313,211.27,211.04,7.73]
[1756471273159,7.32,211.26,211.04,7.73]
[1756471273360,7.32,211.21,210.9,7.73]
[1756471273554,7.32,211.21,210.98,7.73]
[1756471273756,7.32,211.21,211.03,7.73]
[1756471273950,7.32,211.27,211.14,4.2618]
[1756471274153,7.32,211.27,211.1,7.73]
[1756471274662,19.18481313,211.26,211.1,7.73]
[1756471274856,7.32,211.25,211.09,4.2629]
[1756471275159,7.32,211.25,211.04,7.73]
[1756471275654,7.32,211.25,210.91,318.06]
[1756471275655,7.32,211.2,210.93,7.73]
[1756471275958,33.39481313,211.32,210.93,7.73]
[1756471275959,7.32,211.15,210.93,7.73]
[1756471276161,7.32,211.15,210.96,4.2656]
[1756471276361,7.32,211.15,210.93,7.73]
[1756471276662,19.18481313,211.16,210.93,11.9962]
[1756471276856,19.18481313,211.11,210.93,11.9962]
[1756471277056,7.32,211.1,210.93,7.73]
[1756471277357,7.32,211.17,210.96,19.18481313]
[1756471277557,7.32,211.17,210.97,69.73]
[1756471277853,325.4,211.23,211.05,7.73]
[1756471278059,26.50481313,211.31,211.07,7.73]
[1756471278253,7.32,211.25,211.07,7.73]
[1756471278954,7.32,211.25,211.13,4.262]
[1756471279264,7.32,211.32,211.08,7.73]
[1756471279553,7.32,211.32,211.12,7.73]
[1756471279955,7.32,211.32,211.15,4.2617]
[1756471280151,7.32,211.32,211.12,7.73]
[1756471280659,7.32,211.27,211.06,4.2636]
[1756471281161,7.32,211.27,211.1,4.2627]
[1756471281459,7.32,211.27,211.08,7.73]
[1756471281656,7.32,211.27,211.09,4.2629]
[1756471282061,7.32,211.27,211.08,7.73]
[1756471282857,7.32,211.27,211.09,4.263]
[1756471283058,7.32,211.27,211.08,7.73]
[1756471283860,7.32,211.32,211.1,7.73]
[1756471284055,7.32,211.32,211.09,19.18481313]
[1756471284056,7.32,211.32,211.17,7.73]
[1756471284255,7.32,211.38,211.19,19.18481313]
[1756471284460,7.32,211.38,211.2,7.73]
[1756471284860,318.12,211.39,211.2,7.73]
[1756471285262,318.12,211.39,211.24,4.2599]
[1756471285666,318.12,211.39,211.2,7.73]
[1756471285864,318.12,211.39,211.26,4.2595]
[1756471286460,318.12,211.39,211.25,7.73]
[1756471286660,325.44,211.39,211.25,7.73]
[1756471287063,7.32,211.39,211.25,7.73]
[1756471287469,7.32,211.39,211.19,81.18481313]
[1756471287663,7.32,211.39,211.19,62.0]
[1756471288263,7.32,211.39,211.2,4.2607]
[1756471288665,7.32,211.39,211.18,7.73]
[1756471288969,7.32,211.39,211.19,4.2609]
[1756471289371,7.32,211.39,211.18,11.991]
[1756471289870,7.32,211.39,211.19,4.261]
[1756471290167,7.32,211.39,211.18,7.73]
[1756471290571,7.32,211.39,211.17,7.73]
[1756471290768,7.32,211.49,211.27,7.73]
[1756471291668,19.18481313,211.45,211.22,19.18481313]
[1756471291873,7.32,211.44,211.21,7.73]
[1756471292076,7.32,211.39,211.21,7.73]
[1756471292472,7.32,211.39,211.21,11.9905]
[1756471292767,7.32,211.39,211.21,7.73]
[1756471294474,7.32,211.39,211.21,26.91481313]
[1756471294678,7.32,211.49,211.27,7.73]
[1756471295370,14.21,211.48,211.27,7.73]
[1756471295566,7.32,211.46,211.27,7.73]
[1756471295878,21.53,211.46,211.27,7.73]
[1756471296579,14.21,211.42,211.21,23.44521313]
[1756471296776,7.37,211.41,211.21,23.44521313]
[1756471297172,7.37,211.41,211.21,19.18481313]
[1756471297567,7.37,211.41,211.22,7.67]
[1756471298172,7.37,211.41,211.23,4.2602]
[1756471299078,7.37,211.41,211.25,4.2597]
[1756471299278,7.37,211.41,211.22,7.67]
[1756471299572,7.37,211.41,211.26,7.67]
[1756471299774,7.37,211.41,211.26,26.85481313]
[1756471299976,7.37,211.49,211.32,7.67]
[1756471300377,7.37,211.49,211.25,7.67]
[1756471300579,7.37,211.43,211.25,11.9298]
[1756471301178,7.37,211.43,211.27,4.2594]
[1756471301480,7.37,211.43,211.25,7.67]
[1756471301680,7.37,211.43,211.26,4.2594]
[1756471301878,7.37,211.43,211.25,7.67]
[1756471302175,7.37,211.43,211.26,3.74741]
[1756471302381,19.18481313,211.49,211.27,7.67]
[1756471302581,7.37,211.48,211.28,7.67]
[1756471303677,21.58,211.48,211.28,7.67]
[1756471303876,7.37,211.48,211.28,7.67]
[1756471304181,7.37,211.48,211.25,3.74741]
[1756471304182,7.37,211.43,211.23,3.74741]
[1756471304685,7.37,211.43,211.26,4.2596]
[1756471305176,7.37,211.43,211.23,8.00741]
[1756471305382,7.37,211.43,211.23,4.26]
[1756471305578,33.39481313,211.38,211.19,3.74741]
[1756471305775,7.37,211.32,211.15,11.41741]
[1756471305980,7.37,211.32,211.15,7.67]
[1756471307785,21.58,211.32,211.15,7.67]
[1756471307975,7.37,211.32,211.15,7.67]
[1756471308682,7.37,211.27,211.09,7.67]
[1756471309886,7.37,211.27,211.1,7.67]
[1756471310887,7.37,211.27,211.12,4.2624]
[1756471311781,7.37,211.27,211.1,7.67]
[1756471312483,7.37,211.24,211.05,3.74741]
[1756471312684,7.37,211.24,211.05,7.67]
[1756471313788,7.37,211.24,211.05,11.9338]
[1756471314378,7.37,211.19,211.01,3.74741]
[1756471314584,7.37,211.19,210.99,11.41741]
[1756471314784,7.37,211.14,210.99,7.67]
[1756471315588,7.37,211.14,211.0,4.2648]
[1756471316083,7.37,211.2,211.06,11.9336]
[1756471316287,7.37,211.2,211.06,7.67]
[1756471317187,7.37,211.31,211.14,4.262]
[1756471317382,7.37,211.31,211.13,7.67]
[1756471319391,7.37,211.31,211.14,4.2618]
[1756471319590,7.37,211.31,211.13,7.67]
[1756471320193,19.18481313,211.36,211.14,7.67]
[1756471320395,318.12,211.37,211.19,7.67]
[1756471320791,19.18481313,211.36,211.19,7.67]
[1756471321296,7.37,211.35,211.19,7.67]
[1756471321684,7.37,211.35,211.19,11.9308]
[1756471322197,7.37,211.3,211.14,7.67]
[1756471323301,7.37,211.3,211.09,11.41741]
[1756471323795,7.37,211.3,211.1,3.74741]
[1756471323990,7.37,211.3,211.13,4.262]
[1756471324398,7.37,211.25,211.05,8.01121]
[1756471324593,7.37,211.25,211.04,3.74741]
[1756471324897,7.37,211.25,211.07,4.2634]
[1756471325094,7.37,211.25,211.06,3.74741]
[1756471325300,7.37,211.25,211.05,11.41741]
[1756471325696,7.37,211.25,211.05,7.67]
[1756471327097,7.37,211.25,211.05,3.74741]
[1756471327303,27.03481313,211.3,211.08,3.74741]
[1756471327502,7.85,211.3,211.1,3.74741]
[1756471327702,7.85,211.3,211.12,11.29741]
[1756471328097,7.85,211.36,211.14,11.29741]
[1756471328297,7.85,211.36,211.15,7.55]
[1756471328502,7.85,211.36,211.15,11.29741]
[1756471328703,7.85,211.36,211.21,4.2606]
[1756471328907,7.85,211.36,211.16,7.55]
[1756471329104,7.85,211.36,211.16,11.29741]
[1756471329305,7.85,211.36,211.16,7.55]
[1756471329502,19.18481313,211.34,211.15,3.74741]
[1756471329704,7.85,211.28,211.1,3.74741]
[1756471330009,7.85,211.28,211.09,7.55]
[1756471330810,7.85,211.28,211.12,4.2622]
[1756471331508,7.85,211.28,211.1,4.2628]
[1756471331705,7.85,211.28,211.09,7.55]
[1756471331910,7.85,211.28,211.11,4.2624]
[1756471332908,7.85,211.28,211.09,7.55]
[1756471334310,7.85,211.23,211.09,7.55]
[1756471334510,7.85,211.23,211.02,318.12]
[1756471334511,19.18481313,211.19,211.03,7.55]
[1756471334709,27.03481313,211.19,211.03,7.55]
[1756471335611,27.03481313,211.19,211.07,4.2633]
[1756471335811,14.21,211.34,211.07,7.55]
[1756471336010,7.85,211.29,211.07,11.29741]
[1756471336208,7.85,211.29,211.14,4.2618]
[1756471337010,7.85,211.29,211.08,7.55]
[1756471337011,7.85,211.29,211.16,4.2616]
[1756471337310,0.82403921,211.32,211.15,3.74741]
[1756471337514,7.85,211.37,211.19,4.2608]
[1756471338215,7.85,211.32,211.17,4.2614]
[1756471338413,7.85,211.32,211.13,7.55]
[1756471338613,7.85,211.32,211.14,3.74741]
[1756471339203,7.85,211.32,211.13,11.29741]
[1756471339507,7.85,211.32,211.15,7.55]
[1756471339712,7.85,211.32,211.15,3.74741]
[1756471339915,27.03481313,211.38,211.18,3.74741]
[1756471340116,27.03481313,211.38,211.19,11.29741]
[1756471340313,7.85,211.38,211.25,4.2596]
[1756471340514,7.85,211.38,211.24,7.55]
[1756471341017,7.85,211.38,211.27,4.2592]
[1756471341320,7.85,211.44,211.29,4.2589]
[1756471341518,7.85,211.44,211.26,7.55]
[1756471342817,7.85,211.44,211.3,4.2586]
[1756471343019,19.18481313,211.42,211.26,7.55]
[1756471343219,7.85,211.41,211.26,7.55]
[1756471345519,7.85,211.41,211.28,4.2592]
[1756471346315,7.85,211.41,211.26,7.55]
[1756471348521,7.85,211.41,211.3,4.2586]
[1756471348919,7.85,211.41,211.26,7.55]
[1756471349522,19.18481313,211.39,211.26,7.55]
[1756471352227,7.85,211.38,211.21,7.55]
[1756471352624,19.18481313,211.39,211.19,4.2608]
[1756471352625,7.85,211.33,211.19,4.2608]
[1756471352921,7.85,211.33,211.13,3.74741]
[1756471353130,7.85,211.33,211.14,4.262]
[1756471353333,7.85,211.28,211.11,3.74741]
[1756471353522,7.85,211.28,211.12,7.55]
[1756471354227,7.85,211.28,211.12,11.29741]
[1756471354432,7.85,211.28,211.12,7.55]
[1756471354631,7.85,211.28,211.14,7.55]
[1756471354830,7.85,211.28,211.14,11.29741]
[1756471355330,7.85,211.33,211.14,7.55]
[1756471355525,7.85,211.33,211.15,7.55]
[1756471355733,7.85,211.33,211.16,3.74741]
[1756471356326,351.41481313,211.34,211.12,11.29741]
[1756471356527,7.08,211.33,211.14,4.262]
[1756471356727,7.08,211.33,211.12,11.29741]
[1756471357130,7.08,211.33,211.12,3.74741]
[1756471357330,7.08,211.33,211.14,3.74741]
[1756471357628,26.9983126,211.5,211.14,3.74741]
[1756471357629,19.18481313,211.44,211.2,7.5]
[1756471357824,7.08,211.43,211.25,4.2596]
[1756471358023,7.08,211.43,211.25,11.7596]
[1756471358331,7.08,211.43,211.27,4.2594]
[1756471358520,7.08,211.43,211.25,7.5]
[1756471358927,7.08,211.43,211.25,11.7598]
[1756471359127,7.08,211.45,211.25,11.7598]
[1756471359433,7.08,211.42,211.25,7.5]
[1756471360134,7.08,211.42,211.22,4.2602]
[1756471360336,7.08,211.42,211.2,11.24741]
[1756471360631,19.18481313,211.43,211.2,11.24741]
[1756471360828,7.08,211.42,211.24,4.26]
[1756471361135,19.18481313,211.43,211.2,7.5]
[1756471361437,7.08,211.42,211.22,7.5]
[1756471361631,19.18481313,211.38,211.22,3.74741]
[1756471361826,7.08,211.37,211.17,3.74741]
[1756471362132,19.18481313,211.38,211.16,11.24741]
[1756471362534,7.08,211.37,211.16,11.24741]
[1756471362731,19.18481313,211.38,211.16,11.24741]
[1756471362934,7.08,211.37,211.16,11.24741]
[1756471363131,14.21,211.37,211.16,11.24741]
[1756471363431,7.08,211.36,211.17,3.74741]
[1756471363929,19.18481313,211.33,211.16,11.24741]
[1756471364132,7.08,211.32,211.15,4.2616]
[1756471365538,7.08,211.27,211.11,11.24741]
[1756471365837,7.08,211.27,211.11,7.5]
[1756471366138,7.08,211.27,211.11,11.7626]
[1756471367037,7.08,211.27,211.11,7.5]
[1756471367936,7.08,211.27,211.14,4.262]
[1756471368141,7.08,211.27,211.11,7.5]
[1756471368534,7.08,211.27,211.11,11.7626]